{"text_format":"1","workbook":"xlsx","n_sheets":4,"sheets":["Produktionsanlæg","Distributionsanlæg","Fællesfunktionsanlæg","Drop downliste"],"not_rendered":{"charts":0,"images":0,"macros":1,"external_links":0,"defined_names":2,"comments":0,"pivot_tables":0},"unopened":[],"bounds":{"document_bytes":16777216,"sheet_cells":100000,"rows_first":2000,"rows_last":500,"rows_between":2000,"halvings":0,"cell_chars":16384,"cell_head_chars":4096},"cells_cut":0,"cells_raw":0,"read":"whole","date_system":"1900"}

{"sheet":"Produktionsanlæg","index":0,"n_rows":562,"n_cols":6,"rows_kept":562,"cut":false,"hidden":false,"merged":[[0,5,1,5],[0,0,1,0],[0,1,1,1],[0,2,1,2],[0,3,1,3],[0,4,1,4]]}
["Produktionsanlæg","Enhed","Standard-levetid","Samlet mængde per 31/12-2014","Samlet mængde per 31/12-2015","Bemærk-ninger"]
[]
["Renseanlæg 1"]
["Mindre renseanlæg"]
["Mindre renseanlæg < 5.000 PE uden mulighed for opdeling","PE",40,0,0]
["Renseanlæg >= 5.000 PE, Vandbehandling"]
["Indløb med riste, Konstruktioner","PE",60,420000,420000,"Rettet til Reseanlæggets PE af FS"]
["Indløb med riste, Mek/EL","PE",20,420000,420000,"Rettet til Reseanlæggets PE af FS"]
["Indløb med riste, SRO","PE",10,420000,420000,"Rettet til Reseanlæggets PE af FS"]
["Sand- og fedtfang, Kontruktioner","PE",60,420000,420000,"Rettet til Reseanlæggets PE af FS"]
["Sand- og fedtfang, Mek/EL","PE",20,420000,420000,"Rettet til Reseanlæggets PE af FS"]
["Sand- og fedtfang, SRO","PE",10,420000,420000,"Rettet til Reseanlæggets PE af FS"]
["Forklaring, Konstruktioner","PE",60,420000,420000,"Rettet til Reseanlæggets PE af FS"]
["Forklaring, Mek/EL","PE",20,420000,420000,"Rettet til Reseanlæggets PE af FS"]
["Forklaring, SRO","PE",10,420000,420000,"Rettet til Reseanlæggets PE af FS"]
["Beluftningstanke, Konstruktioner","PE",60,420000,420000,"PE Belastning"]
["Beluftningstanke, Mek/EL","PE",20,420000,420000,"PE Belastning"]
["Beluftningstanke, SRO","PE",10,420000,420000,"PE Belastning"]
["Efterklaringstanke, Konstruktioner","PE",60,420000,420000,"Kan ikke opgøres i PE - anvendt renseanlæggets PE"]
["Efterklaringstanke, Mek/El","PE",20,420000,420000,"Kan ikke opgøres i PE - anvendt renseanlæggets PE"]
["Efterklaringstanke, SRO","PE",10,420000,420000,"Kan ikke opgøres i PE - anvendt renseanlæggets PE"]
["Efterbehandlingsanlæg (sandfilter), Konstruktioner","PE",60]
["Efterbehandlingsanlæg (sandfilter), Mek/EL","PE",20]
["Efterbehandlingsanlæg (sandfilter), SRO","PE",10]
["Renseanlæg >= 5.000 PE, Slambehandling"]
["Forafvanding, slam, Konstruktion","PE",60,420000,420000,"Kan ikke opgøres i PE - anvendt renseanlæggets PE - 950 kg ts/time"]
["Forafvanding, slam, Mek/EL","PE",20,420000,420000,"Kan ikke opgøres i PE - anvendt renseanlæggets PE - 950 kg ts/time"]
["Forafvanding, slam, SRO","PE",10,420000,420000,"Kan ikke opgøres i PE - anvendt renseanlæggets PE - 950 kg ts/time"]
["Rådnetanke, slam, Konstruktioner","PE",60,420000,800000,"Vurderes at være mellem 420000-800000 PE - alt efter slammets sammensætning og opholdstid."]
["Rådnetanke, slam, Mek/EL","PE",20,420000,800000,"Vurderes at være mellem 420000-800000 PE - alt efter slammets sammensætning og opholdstid."]
["Rådnetanke, slam, SRO","PE",10,420000,800000,"Vurderes at være mellem 420000-800000 PE - alt efter slammets sammensætning og opholdstid."]
["Gasdisponering, Konstruktioner","PE",60,420000,420000,"Kan ikke opgøres i PE - anvendt renseanlæggets PE - 380 m3/time"]
["Gasdisponering, Mek/EL","PE",20,420000,420000,"Kan ikke opgøres i PE - anvendt renseanlæggets PE - 380 m3/time"]
["Gasdisponering, SRO","PE",10,420000,420000,"Kan ikke opgøres i PE - anvendt renseanlæggets PE - 380 m3/time"]
["Gasdisponering - elproduktionsanlæg, Konstruktioner","PE",60,420000,420000,"Kan ikke opgøres i PE - anvendt renseanlæggets PE - indfyret effekt 250 kw"]
["Gasdisponering - elproduktionsanlæg, Mek/EL","PE",20,420000,420000,"Kan ikke opgøres i PE - anvendt renseanlæggets PE - indfyret effekt 250 kw"]
["Gasdisponering - elproduktionsanlæg, SRO","PE",10,420000,420000,"Kan ikke opgøres i PE - anvendt renseanlæggets PE - indfyret effekt 250 kw"]
["Slutafvanding, slam - lavteknologisk (slambede), Konstruktioner","PE",60,null,null,"Særligt forhold - Termisk Hydrolyseanlæg"]
["Slutafvanding, slam - lavteknologisk (slambede), Mek/EL","PE",20,null,null,"Særligt forhold - Termisk Hydrolyseanlæg"]
["Slutafvanding, slam - lavteknologisk (slambede), SRO","PE",10,null,null,"Særligt forhold - Termisk Hydrolyseanlæg"]
["Slutafvanding, slam - højteknologisk (centrifuger), Konstruktioner","PE",60,420000,420000,"Kan ikke opgøres i PE - anvendt renseanlæggets PE - 1100 kg ts/time"]
["Slutafvanding, slam - højteknologisk (centrifuger), Mek/El","PE",20,420000,420000,"Kan ikke opgøres i PE - anvendt renseanlæggets PE - 1100 kg ts/time"]
["Slutafvanding, slam - højteknologisk (centrifuger), SRO","PE",10,420000,420000,"Kan ikke opgøres i PE - anvendt renseanlæggets PE - 1100 kg ts/time"]
["Renseanlæg >= 5.000 PE, Slamdisponering"]
["Slutdisponering, slam - lavteknologisk (slammineralisering), Konstruktioner","PE",60,0,0]
["Slutdisponering, slam - lavteknologisk (slammineralisering), Mek/EL","PE",20,0,0]
["Slutdisponering, slam - lavteknologisk (slammineralisering), SRO","PE",10,0,0]
["Slutdisponering, slam - højteknologisk (slamtørring), Konstruktioner","PE",60,0,0]
["Slutdisponering, slam - højteknologisk (slamtørring), Mek/EL","PE",20,0,0]
["Slutdisponering, slam - højteknologisk (slamtørring), SRO","PE",10,0,0]
["Slutdisponering, slam - højteknologisk (slamtørring og -forbrænding), Konstruktioner","PE",60,0,0]
["Slutdisponering, slam - højteknologisk (slamtørring og -forbrænding), Mek/EL","PE",20,0,0]
["Slutdisponering, slam - højteknologisk (slamtørring og -forbrænding), SRO","PE",10,0,0]
["Renseanlæg 2"]
["Mindre renseanlæg"]
["Mindre renseanlæg < 5.000 PE uden mulighed for opdeling","PE",40,0]
["Renseanlæg >= 5.000 PE, Vandbehandling"]
["Indløb med riste, Konstruktioner","PE",60,0]
["Indløb med riste, Mek/EL","PE",20,0]
["Indløb med riste, SRO","PE",10,0]
["Sand- og fedtfang, Kontruktioner","PE",60,0]
["Sand- og fedtfang, Mek/EL","PE",20,0]
["Sand- og fedtfang, SRO","PE",10,0]
["Forklaring, Konstruktioner","PE",60,0]
["Forklaring, Mek/EL","PE",20,0]
["Forklaring, SRO","PE",10,0]
["Beluftningstanke, Konstruktioner","PE",60,0]
["Beluftningstanke, Mek/EL","PE",20,0]
["Beluftningstanke, SRO","PE",10,0]
["Efterklaringstanke, Konstruktioner","PE",60,0]
["Efterklaringstanke, Mek/El","PE",20,0]
["Efterklaringstanke, SRO","PE",10,0]
["Efterbehandlingsanlæg (sandfilter), Konstruktioner","PE",60,0]
["Efterbehandlingsanlæg (sandfilter), Mek/EL","PE",20,0]
["Efterbehandlingsanlæg (sandfilter), SRO","PE",10,0]
["Renseanlæg >= 5.000 PE, Slambehandling"]
["Forafvanding, slam, Konstruktion","PE",60,0]
["Forafvanding, slam, Mek/EL","PE",20,0]
["Forafvanding, slam, SRO","PE",10,0]
["Rådnetanke, slam, Konstruktioner","PE",60,0]
["Rådnetanke, slam, Mek/EL","PE",20,0]
["Rådnetanke, slam, SRO","PE",10,0]
["Gasdisponering, Konstruktioner","PE",60,0]
["Gasdisponering, Mek/EL","PE",20,0]
["Gasdisponering, SRO","PE",10,0]
["Gasdisponering - elproduktionsanlæg, Konstruktioner","PE",60,0]
["Gasdisponering - elproduktionsanlæg, Mek/EL","PE",20,0]
["Gasdisponering - elproduktionsanlæg, SRO","PE",10,0]
["Slutafvanding, slam - lavteknologisk (slambede), Konstruktioner","PE",60,0]
["Slutafvanding, slam - lavteknologisk (slambede), Mek/EL","PE",20,0]
["Slutafvanding, slam - lavteknologisk (slambede), SRO","PE",10,0]
["Slutafvanding, slam - højteknologisk (centrifuger), Konstruktioner","PE",60,0]
["Slutafvanding, slam - højteknologisk (centrifuger), Mek/El","PE",20,0]
["Slutafvanding, slam - højteknologisk (centrifuger), SRO","PE",10,0]
["Renseanlæg >= 5.000 PE, Slamdisponering"]
["Slutdisponering, slam - lavteknologisk (slammineralisering), Konstruktioner","PE",60,0]
["Slutdisponering, slam - lavteknologisk (slammineralisering), Mek/EL","PE",20,0]
["Slutdisponering, slam - lavteknologisk (slammineralisering), SRO","PE",10,0]
["Slutdisponering, slam - højteknologisk (slamtørring), Konstruktioner","PE",60,0]
["Slutdisponering, slam - højteknologisk (slamtørring), Mek/EL","PE",20,0]
["Slutdisponering, slam - højteknologisk (slamtørring), SRO","PE",10,0]
["Slutdisponering, slam - højteknologisk (slamtørring og -forbrænding), Konstruktioner","PE",60,0]
["Slutdisponering, slam - højteknologisk (slamtørring og -forbrænding), Mek/EL","PE",20,0]
["Slutdisponering, slam - højteknologisk (slamtørring og -forbrænding), SRO","PE",10,0]
["Renseanlæg 3"]
["Mindre renseanlæg"]
["Mindre renseanlæg < 5.000 PE uden mulighed for opdeling","PE",40,0]
["Renseanlæg >= 5.000 PE, Vandbehandling"]
["Indløb med riste, Konstruktioner","PE",60,0]
["Indløb med riste, Mek/EL","PE",20,0]
["Indløb med riste, SRO","PE",10,0]
["Sand- og fedtfang, Kontruktioner","PE",60,0]
["Sand- og fedtfang, Mek/EL","PE",20,0]
["Sand- og fedtfang, SRO","PE",10,0]
["Forklaring, Konstruktioner","PE",60,0]
["Forklaring, Mek/EL","PE",20,0]
["Forklaring, SRO","PE",10,0]
["Beluftningstanke, Konstruktioner","PE",60,0]
["Beluftningstanke, Mek/EL","PE",20,0]
["Beluftningstanke, SRO","PE",10,0]
["Efterklaringstanke, Konstruktioner","PE",60,0]
["Efterklaringstanke, Mek/El","PE",20,0]
["Efterklaringstanke, SRO","PE",10,0]
["Efterbehandlingsanlæg (sandfilter), Konstruktioner","PE",60,0]
["Efterbehandlingsanlæg (sandfilter), Mek/EL","PE",20,0]
["Efterbehandlingsanlæg (sandfilter), SRO","PE",10,0]
["Renseanlæg >= 5.000 PE, Slambehandling"]
["Forafvanding, slam, Konstruktion","PE",60,0]
["Forafvanding, slam, Mek/EL","PE",20,0]
["Forafvanding, slam, SRO","PE",10,0]
["Rådnetanke, slam, Konstruktioner","PE",60,0]
["Rådnetanke, slam, Mek/EL","PE",20,0]
["Rådnetanke, slam, SRO","PE",10,0]
["Gasdisponering, Konstruktioner","PE",60,0]
["Gasdisponering, Mek/EL","PE",20,0]
["Gasdisponering, SRO","PE",10,0]
["Gasdisponering - elproduktionsanlæg, Konstruktioner","PE",60,0]
["Gasdisponering - elproduktionsanlæg, Mek/EL","PE",20,0]
["Gasdisponering - elproduktionsanlæg, SRO","PE",10,0]
["Slutafvanding, slam - lavteknologisk (slambede), Konstruktioner","PE",60,0]
["Slutafvanding, slam - lavteknologisk (slambede), Mek/EL","PE",20,0]
["Slutafvanding, slam - lavteknologisk (slambede), SRO","PE",10,0]
["Slutafvanding, slam - højteknologisk (centrifuger), Konstruktioner","PE",60,0]
["Slutafvanding, slam - højteknologisk (centrifuger), Mek/El","PE",20,0]
["Slutafvanding, slam - højteknologisk (centrifuger), SRO","PE",10,0]
["Renseanlæg >= 5.000 PE, Slamdisponering"]
["Slutdisponering, slam - lavteknologisk (slammineralisering), Konstruktioner","PE",60,0]
["Slutdisponering, slam - lavteknologisk (slammineralisering), Mek/EL","PE",20,0]
["Slutdisponering, slam - lavteknologisk (slammineralisering), SRO","PE",10,0]
["Slutdisponering, slam - højteknologisk (slamtørring), Konstruktioner","PE",60,0]
["Slutdisponering, slam - højteknologisk (slamtørring), Mek/EL","PE",20,0]
["Slutdisponering, slam - højteknologisk (slamtørring), SRO","PE",10,0]
["Slutdisponering, slam - højteknologisk (slamtørring og -forbrænding), Konstruktioner","PE",60,0]
["Slutdisponering, slam - højteknologisk (slamtørring og -forbrænding), Mek/EL","PE",20,0]
["Slutdisponering, slam - højteknologisk (slamtørring og -forbrænding), SRO","PE",10,0]
["Renseanlæg 4"]
["Mindre renseanlæg"]
["Mindre renseanlæg < 5.000 PE uden mulighed for opdeling","PE",40,0]
["Renseanlæg >= 5.000 PE, Vandbehandling"]
["Indløb med riste, Konstruktioner","PE",60,0]
["Indløb med riste, Mek/EL","PE",20,0]
["Indløb med riste, SRO","PE",10,0]
["Sand- og fedtfang, Kontruktioner","PE",60,0]
["Sand- og fedtfang, Mek/EL","PE",20,0]
["Sand- og fedtfang, SRO","PE",10,0]
["Forklaring, Konstruktioner","PE",60,0]
["Forklaring, Mek/EL","PE",20,0]
["Forklaring, SRO","PE",10,0]
["Beluftningstanke, Konstruktioner","PE",60,0]
["Beluftningstanke, Mek/EL","PE",20,0]
["Beluftningstanke, SRO","PE",10,0]
["Efterklaringstanke, Konstruktioner","PE",60,0]
["Efterklaringstanke, Mek/El","PE",20,0]
["Efterklaringstanke, SRO","PE",10,0]
["Efterbehandlingsanlæg (sandfilter), Konstruktioner","PE",60,0]
["Efterbehandlingsanlæg (sandfilter), Mek/EL","PE",20,0]
["Efterbehandlingsanlæg (sandfilter), SRO","PE",10,0]
["Renseanlæg >= 5.000 PE, Slambehandling"]
["Forafvanding, slam, Konstruktion","PE",60,0]
["Forafvanding, slam, Mek/EL","PE",20,0]
["Forafvanding, slam, SRO","PE",10,0]
["Rådnetanke, slam, Konstruktioner","PE",60,0]
["Rådnetanke, slam, Mek/EL","PE",20,0]
["Rådnetanke, slam, SRO","PE",10,0]
["Gasdisponering, Konstruktioner","PE",60,0]
["Gasdisponering, Mek/EL","PE",20,0]
["Gasdisponering, SRO","PE",10,0]
["Gasdisponering - elproduktionsanlæg, Konstruktioner","PE",60,0]
["Gasdisponering - elproduktionsanlæg, Mek/EL","PE",20,0]
["Gasdisponering - elproduktionsanlæg, SRO","PE",10,0]
["Slutafvanding, slam - lavteknologisk (slambede), Konstruktioner","PE",60,0]
["Slutafvanding, slam - lavteknologisk (slambede), Mek/EL","PE",20,0]
["Slutafvanding, slam - lavteknologisk (slambede), SRO","PE",10,0]
["Slutafvanding, slam - højteknologisk (centrifuger), Konstruktioner","PE",60,0]
["Slutafvanding, slam - højteknologisk (centrifuger), Mek/El","PE",20,0]
["Slutafvanding, slam - højteknologisk (centrifuger), SRO","PE",10,0]
["Renseanlæg >= 5.000 PE, Slamdisponering"]
["Slutdisponering, slam - lavteknologisk (slammineralisering), Konstruktioner","PE",60,0]
["Slutdisponering, slam - lavteknologisk (slammineralisering), Mek/EL","PE",20,0]
["Slutdisponering, slam - lavteknologisk (slammineralisering), SRO","PE",10,0]
["Slutdisponering, slam - højteknologisk (slamtørring), Konstruktioner","PE",60,0]
["Slutdisponering, slam - højteknologisk (slamtørring), Mek/EL","PE",20,0]
["Slutdisponering, slam - højteknologisk (slamtørring), SRO","PE",10,0]
["Slutdisponering, slam - højteknologisk (slamtørring og -forbrænding), Konstruktioner","PE",60,0]
["Slutdisponering, slam - højteknologisk (slamtørring og -forbrænding), Mek/EL","PE",20,0]
["Slutdisponering, slam - højteknologisk (slamtørring og -forbrænding), SRO","PE",10,0]
["Renseanlæg 5"]
["Mindre renseanlæg"]
["Mindre renseanlæg < 5.000 PE uden mulighed for opdeling","PE",40,0]
["Renseanlæg >= 5.000 PE, Vandbehandling"]
["Indløb med riste, Konstruktioner","PE",60,0]
["Indløb med riste, Mek/EL","PE",20,0]
["Indløb med riste, SRO","PE",10,0]
["Sand- og fedtfang, Kontruktioner","PE",60,0]
["Sand- og fedtfang, Mek/EL","PE",20,0]
["Sand- og fedtfang, SRO","PE",10,0]
["Forklaring, Konstruktioner","PE",60,0]
["Forklaring, Mek/EL","PE",20,0]
["Forklaring, SRO","PE",10,0]
["Beluftningstanke, Konstruktioner","PE",60,0]
["Beluftningstanke, Mek/EL","PE",20,0]
["Beluftningstanke, SRO","PE",10,0]
["Efterklaringstanke, Konstruktioner","PE",60,0]
["Efterklaringstanke, Mek/El","PE",20,0]
["Efterklaringstanke, SRO","PE",10,0]
["Efterbehandlingsanlæg (sandfilter), Konstruktioner","PE",60,0]
["Efterbehandlingsanlæg (sandfilter), Mek/EL","PE",20,0]
["Efterbehandlingsanlæg (sandfilter), SRO","PE",10,0]
["Renseanlæg >= 5.000 PE, Slambehandling"]
["Forafvanding, slam, Konstruktion","PE",60,0]
["Forafvanding, slam, Mek/EL","PE",20,0]
["Forafvanding, slam, SRO","PE",10,0]
["Rådnetanke, slam, Konstruktioner","PE",60,0]
["Rådnetanke, slam, Mek/EL","PE",20,0]
["Rådnetanke, slam, SRO","PE",10,0]
["Gasdisponering, Konstruktioner","PE",60,0]
["Gasdisponering, Mek/EL","PE",20,0]
["Gasdisponering, SRO","PE",10,0]
["Gasdisponering - elproduktionsanlæg, Konstruktioner","PE",60,0]
["Gasdisponering - elproduktionsanlæg, Mek/EL","PE",20,0]
["Gasdisponering - elproduktionsanlæg, SRO","PE",10,0]
["Slutafvanding, slam - lavteknologisk (slambede), Konstruktioner","PE",60,0]
["Slutafvanding, slam - lavteknologisk (slambede), Mek/EL","PE",20,0]
["Slutafvanding, slam - lavteknologisk (slambede), SRO","PE",10,0]
["Slutafvanding, slam - højteknologisk (centrifuger), Konstruktioner","PE",60,0]
["Slutafvanding, slam - højteknologisk (centrifuger), Mek/El","PE",20,0]
["Slutafvanding, slam - højteknologisk (centrifuger), SRO","PE",10,0]
["Renseanlæg >= 5.000 PE, Slamdisponering"]
["Slutdisponering, slam - lavteknologisk (slammineralisering), Konstruktioner","PE",60,0]
["Slutdisponering, slam - lavteknologisk (slammineralisering), Mek/EL","PE",20,0]
["Slutdisponering, slam - lavteknologisk (slammineralisering), SRO","PE",10,0]
["Slutdisponering, slam - højteknologisk (slamtørring), Konstruktioner","PE",60,0]
["Slutdisponering, slam - højteknologisk (slamtørring), Mek/EL","PE",20,0]
["Slutdisponering, slam - højteknologisk (slamtørring), SRO","PE",10,0]
["Slutdisponering, slam - højteknologisk (slamtørring og -forbrænding), Konstruktioner","PE",60,0]
["Slutdisponering, slam - højteknologisk (slamtørring og -forbrænding), Mek/EL","PE",20,0]
["Slutdisponering, slam - højteknologisk (slamtørring og -forbrænding), SRO","PE",10,0]
["Renseanlæg 6"]
["Mindre renseanlæg"]
["Mindre renseanlæg < 5.000 PE uden mulighed for opdeling","PE",40,0]
["Renseanlæg >= 5.000 PE, Vandbehandling"]
["Indløb med riste, Konstruktioner","PE",60,0]
["Indløb med riste, Mek/EL","PE",20,0]
["Indløb med riste, SRO","PE",10,0]
["Sand- og fedtfang, Kontruktioner","PE",60,0]
["Sand- og fedtfang, Mek/EL","PE",20,0]
["Sand- og fedtfang, SRO","PE",10,0]
["Forklaring, Konstruktioner","PE",60,0]
["Forklaring, Mek/EL","PE",20,0]
["Forklaring, SRO","PE",10,0]
["Beluftningstanke, Konstruktioner","PE",60,0]
["Beluftningstanke, Mek/EL","PE",20,0]
["Beluftningstanke, SRO","PE",10,0]
["Efterklaringstanke, Konstruktioner","PE",60,0]
["Efterklaringstanke, Mek/El","PE",20,0]
["Efterklaringstanke, SRO","PE",10,0]
["Efterbehandlingsanlæg (sandfilter), Konstruktioner","PE",60,0]
["Efterbehandlingsanlæg (sandfilter), Mek/EL","PE",20,0]
["Efterbehandlingsanlæg (sandfilter), SRO","PE",10,0]
["Renseanlæg >= 5.000 PE, Slambehandling"]
["Forafvanding, slam, Konstruktion","PE",60,0]
["Forafvanding, slam, Mek/EL","PE",20,0]
["Forafvanding, slam, SRO","PE",10,0]
["Rådnetanke, slam, Konstruktioner","PE",60,0]
["Rådnetanke, slam, Mek/EL","PE",20,0]
["Rådnetanke, slam, SRO","PE",10,0]
["Gasdisponering, Konstruktioner","PE",60,0]
["Gasdisponering, Mek/EL","PE",20,0]
["Gasdisponering, SRO","PE",10,0]
["Gasdisponering - elproduktionsanlæg, Konstruktioner","PE",60,0]
["Gasdisponering - elproduktionsanlæg, Mek/EL","PE",20,0]
["Gasdisponering - elproduktionsanlæg, SRO","PE",10,0]
["Slutafvanding, slam - lavteknologisk (slambede), Konstruktioner","PE",60,0]
["Slutafvanding, slam - lavteknologisk (slambede), Mek/EL","PE",20,0]
["Slutafvanding, slam - lavteknologisk (slambede), SRO","PE",10,0]
["Slutafvanding, slam - højteknologisk (centrifuger), Konstruktioner","PE",60,0]
["Slutafvanding, slam - højteknologisk (centrifuger), Mek/El","PE",20,0]
["Slutafvanding, slam - højteknologisk (centrifuger), SRO","PE",10,0]
["Renseanlæg >= 5.000 PE, Slamdisponering"]
["Slutdisponering, slam - lavteknologisk (slammineralisering), Konstruktioner","PE",60,0]
["Slutdisponering, slam - lavteknologisk (slammineralisering), Mek/EL","PE",20,0]
["Slutdisponering, slam - lavteknologisk (slammineralisering), SRO","PE",10,0]
["Slutdisponering, slam - højteknologisk (slamtørring), Konstruktioner","PE",60,0]
["Slutdisponering, slam - højteknologisk (slamtørring), Mek/EL","PE",20,0]
["Slutdisponering, slam - højteknologisk (slamtørring), SRO","PE",10,0]
["Slutdisponering, slam - højteknologisk (slamtørring og -forbrænding), Konstruktioner","PE",60,0]
["Slutdisponering, slam - højteknologisk (slamtørring og -forbrænding), Mek/EL","PE",20,0]
["Slutdisponering, slam - højteknologisk (slamtørring og -forbrænding), SRO","PE",10,0]
["Renseanlæg 7"]
["Mindre renseanlæg"]
["Mindre renseanlæg < 5.000 PE uden mulighed for opdeling","PE",40,0]
["Renseanlæg >= 5.000 PE, Vandbehandling"]
["Indløb med riste, Konstruktioner","PE",60,0]
["Indløb med riste, Mek/EL","PE",20,0]
["Indløb med riste, SRO","PE",10,0]
["Sand- og fedtfang, Kontruktioner","PE",60,0]
["Sand- og fedtfang, Mek/EL","PE",20,0]
["Sand- og fedtfang, SRO","PE",10,0]
["Forklaring, Konstruktioner","PE",60,0]
["Forklaring, Mek/EL","PE",20,0]
["Forklaring, SRO","PE",10,0]
["Beluftningstanke, Konstruktioner","PE",60,0]
["Beluftningstanke, Mek/EL","PE",20,0]
["Beluftningstanke, SRO","PE",10,0]
["Efterklaringstanke, Konstruktioner","PE",60,0]
["Efterklaringstanke, Mek/El","PE",20,0]
["Efterklaringstanke, SRO","PE",10,0]
["Efterbehandlingsanlæg (sandfilter), Konstruktioner","PE",60,0]
["Efterbehandlingsanlæg (sandfilter), Mek/EL","PE",20,0]
["Efterbehandlingsanlæg (sandfilter), SRO","PE",10,0]
["Renseanlæg >= 5.000 PE, Slambehandling"]
["Forafvanding, slam, Konstruktion","PE",60,0]
["Forafvanding, slam, Mek/EL","PE",20,0]
["Forafvanding, slam, SRO","PE",10,0]
["Rådnetanke, slam, Konstruktioner","PE",60,0]
["Rådnetanke, slam, Mek/EL","PE",20,0]
["Rådnetanke, slam, SRO","PE",10,0]
["Gasdisponering, Konstruktioner","PE",60,0]
["Gasdisponering, Mek/EL","PE",20,0]
["Gasdisponering, SRO","PE",10,0]
["Gasdisponering - elproduktionsanlæg, Konstruktioner","PE",60,0]
["Gasdisponering - elproduktionsanlæg, Mek/EL","PE",20,0]
["Gasdisponering - elproduktionsanlæg, SRO","PE",10,0]
["Slutafvanding, slam - lavteknologisk (slambede), Konstruktioner","PE",60,0]
["Slutafvanding, slam - lavteknologisk (slambede), Mek/EL","PE",20,0]
["Slutafvanding, slam - lavteknologisk (slambede), SRO","PE",10,0]
["Slutafvanding, slam - højteknologisk (centrifuger), Konstruktioner","PE",60,0]
["Slutafvanding, slam - højteknologisk (centrifuger), Mek/El","PE",20,0]
["Slutafvanding, slam - højteknologisk (centrifuger), SRO","PE",10,0]
["Renseanlæg >= 5.000 PE, Slamdisponering"]
["Slutdisponering, slam - lavteknologisk (slammineralisering), Konstruktioner","PE",60,0]
["Slutdisponering, slam - lavteknologisk (slammineralisering), Mek/EL","PE",20,0]
["Slutdisponering, slam - lavteknologisk (slammineralisering), SRO","PE",10,0]
["Slutdisponering, slam - højteknologisk (slamtørring), Konstruktioner","PE",60,0]
["Slutdisponering, slam - højteknologisk (slamtørring), Mek/EL","PE",20,0]
["Slutdisponering, slam - højteknologisk (slamtørring), SRO","PE",10,0]
["Slutdisponering, slam - højteknologisk (slamtørring og -forbrænding), Konstruktioner","PE",60,0]
["Slutdisponering, slam - højteknologisk (slamtørring og -forbrænding), Mek/EL","PE",20,0]
["Slutdisponering, slam - højteknologisk (slamtørring og -forbrænding), SRO","PE",10,0]
["Renseanlæg 8"]
["Mindre renseanlæg"]
["Mindre renseanlæg < 5.000 PE uden mulighed for opdeling","PE",40,0]
["Renseanlæg >= 5.000 PE, Vandbehandling"]
["Indløb med riste, Konstruktioner","PE",60,0]
["Indløb med riste, Mek/EL","PE",20,0]
["Indløb med riste, SRO","PE",10,0]
["Sand- og fedtfang, Kontruktioner","PE",60,0]
["Sand- og fedtfang, Mek/EL","PE",20,0]
["Sand- og fedtfang, SRO","PE",10,0]
["Forklaring, Konstruktioner","PE",60,0]
["Forklaring, Mek/EL","PE",20,0]
["Forklaring, SRO","PE",10,0]
["Beluftningstanke, Konstruktioner","PE",60,0]
["Beluftningstanke, Mek/EL","PE",20,0]
["Beluftningstanke, SRO","PE",10,0]
["Efterklaringstanke, Konstruktioner","PE",60,0]
["Efterklaringstanke, Mek/El","PE",20,0]
["Efterklaringstanke, SRO","PE",10,0]
["Efterbehandlingsanlæg (sandfilter), Konstruktioner","PE",60,0]
["Efterbehandlingsanlæg (sandfilter), Mek/EL","PE",20,0]
["Efterbehandlingsanlæg (sandfilter), SRO","PE",10,0]
["Renseanlæg >= 5.000 PE, Slambehandling"]
["Forafvanding, slam, Konstruktion","PE",60,0]
["Forafvanding, slam, Mek/EL","PE",20,0]
["Forafvanding, slam, SRO","PE",10,0]
["Rådnetanke, slam, Konstruktioner","PE",60,0]
["Rådnetanke, slam, Mek/EL","PE",20,0]
["Rådnetanke, slam, SRO","PE",10,0]
["Gasdisponering, Konstruktioner","PE",60,0]
["Gasdisponering, Mek/EL","PE",20,0]
["Gasdisponering, SRO","PE",10,0]
["Gasdisponering - elproduktionsanlæg, Konstruktioner","PE",60,0]
["Gasdisponering - elproduktionsanlæg, Mek/EL","PE",20,0]
["Gasdisponering - elproduktionsanlæg, SRO","PE",10,0]
["Slutafvanding, slam - lavteknologisk (slambede), Konstruktioner","PE",60,0]
["Slutafvanding, slam - lavteknologisk (slambede), Mek/EL","PE",20,0]
["Slutafvanding, slam - lavteknologisk (slambede), SRO","PE",10,0]
["Slutafvanding, slam - højteknologisk (centrifuger), Konstruktioner","PE",60,0]
["Slutafvanding, slam - højteknologisk (centrifuger), Mek/El","PE",20,0]
["Slutafvanding, slam - højteknologisk (centrifuger), SRO","PE",10,0]
["Renseanlæg >= 5.000 PE, Slamdisponering"]
["Slutdisponering, slam - lavteknologisk (slammineralisering), Konstruktioner","PE",60,0]
["Slutdisponering, slam - lavteknologisk (slammineralisering), Mek/EL","PE",20,0]
["Slutdisponering, slam - lavteknologisk (slammineralisering), SRO","PE",10,0]
["Slutdisponering, slam - højteknologisk (slamtørring), Konstruktioner","PE",60,0]
["Slutdisponering, slam - højteknologisk (slamtørring), Mek/EL","PE",20,0]
["Slutdisponering, slam - højteknologisk (slamtørring), SRO","PE",10,0]
["Slutdisponering, slam - højteknologisk (slamtørring og -forbrænding), Konstruktioner","PE",60,0]
["Slutdisponering, slam - højteknologisk (slamtørring og -forbrænding), Mek/EL","PE",20,0]
["Slutdisponering, slam - højteknologisk (slamtørring og -forbrænding), SRO","PE",10,0]
["Renseanlæg 9"]
["Mindre renseanlæg"]
["Mindre renseanlæg < 5.000 PE uden mulighed for opdeling","PE",40,0]
["Renseanlæg >= 5.000 PE, Vandbehandling"]
["Indløb med riste, Konstruktioner","PE",60,0]
["Indløb med riste, Mek/EL","PE",20,0]
["Indløb med riste, SRO","PE",10,0]
["Sand- og fedtfang, Kontruktioner","PE",60,0]
["Sand- og fedtfang, Mek/EL","PE",20,0]
["Sand- og fedtfang, SRO","PE",10,0]
["Forklaring, Konstruktioner","PE",60,0]
["Forklaring, Mek/EL","PE",20,0]
["Forklaring, SRO","PE",10,0]
["Beluftningstanke, Konstruktioner","PE",60,0]
["Beluftningstanke, Mek/EL","PE",20,0]
["Beluftningstanke, SRO","PE",10,0]
["Efterklaringstanke, Konstruktioner","PE",60,0]
["Efterklaringstanke, Mek/El","PE",20,0]
["Efterklaringstanke, SRO","PE",10,0]
["Efterbehandlingsanlæg (sandfilter), Konstruktioner","PE",60,0]
["Efterbehandlingsanlæg (sandfilter), Mek/EL","PE",20,0]
["Efterbehandlingsanlæg (sandfilter), SRO","PE",10,0]
["Renseanlæg >= 5.000 PE, Slambehandling"]
["Forafvanding, slam, Konstruktion","PE",60,0]
["Forafvanding, slam, Mek/EL","PE",20,0]
["Forafvanding, slam, SRO","PE",10,0]
["Rådnetanke, slam, Konstruktioner","PE",60,0]
["Rådnetanke, slam, Mek/EL","PE",20,0]
["Rådnetanke, slam, SRO","PE",10,0]
["Gasdisponering, Konstruktioner","PE",60,0]
["Gasdisponering, Mek/EL","PE",20,0]
["Gasdisponering, SRO","PE",10,0]
["Gasdisponering - elproduktionsanlæg, Konstruktioner","PE",60,0]
["Gasdisponering - elproduktionsanlæg, Mek/EL","PE",20,0]
["Gasdisponering - elproduktionsanlæg, SRO","PE",10,0]
["Slutafvanding, slam - lavteknologisk (slambede), Konstruktioner","PE",60,0]
["Slutafvanding, slam - lavteknologisk (slambede), Mek/EL","PE",20,0]
["Slutafvanding, slam - lavteknologisk (slambede), SRO","PE",10,0]
["Slutafvanding, slam - højteknologisk (centrifuger), Konstruktioner","PE",60,0]
["Slutafvanding, slam - højteknologisk (centrifuger), Mek/El","PE",20,0]
["Slutafvanding, slam - højteknologisk (centrifuger), SRO","PE",10,0]
["Renseanlæg >= 5.000 PE, Slamdisponering"]
["Slutdisponering, slam - lavteknologisk (slammineralisering), Konstruktioner","PE",60,0]
["Slutdisponering, slam - lavteknologisk (slammineralisering), Mek/EL","PE",20,0]
["Slutdisponering, slam - lavteknologisk (slammineralisering), SRO","PE",10,0]
["Slutdisponering, slam - højteknologisk (slamtørring), Konstruktioner","PE",60,0]
["Slutdisponering, slam - højteknologisk (slamtørring), Mek/EL","PE",20,0]
["Slutdisponering, slam - højteknologisk (slamtørring), SRO","PE",10,0]
["Slutdisponering, slam - højteknologisk (slamtørring og -forbrænding), Konstruktioner","PE",60,0]
["Slutdisponering, slam - højteknologisk (slamtørring og -forbrænding), Mek/EL","PE",20,0]
["Slutdisponering, slam - højteknologisk (slamtørring og -forbrænding), SRO","PE",10,0]
["Renseanlæg 10"]
["Mindre renseanlæg"]
["Mindre renseanlæg < 5.000 PE uden mulighed for opdeling","PE",40,0]
["Renseanlæg >= 5.000 PE, Vandbehandling"]
["Indløb med riste, Konstruktioner","PE",60,0]
["Indløb med riste, Mek/EL","PE",20,0]
["Indløb med riste, SRO","PE",10,0]
["Sand- og fedtfang, Kontruktioner","PE",60,0]
["Sand- og fedtfang, Mek/EL","PE",20,0]
["Sand- og fedtfang, SRO","PE",10,0]
["Forklaring, Konstruktioner","PE",60,0]
["Forklaring, Mek/EL","PE",20,0]
["Forklaring, SRO","PE",10,0]
["Beluftningstanke, Konstruktioner","PE",60,0]
["Beluftningstanke, Mek/EL","PE",20,0]
["Beluftningstanke, SRO","PE",10,0]
["Efterklaringstanke, Konstruktioner","PE",60,0]
["Efterklaringstanke, Mek/El","PE",20,0]
["Efterklaringstanke, SRO","PE",10,0]
["Efterbehandlingsanlæg (sandfilter), Konstruktioner","PE",60,0]
["Efterbehandlingsanlæg (sandfilter), Mek/EL","PE",20,0]
["Efterbehandlingsanlæg (sandfilter), SRO","PE",10,0]
["Renseanlæg >= 5.000 PE, Slambehandling"]
["Forafvanding, slam, Konstruktion","PE",60,0]
["Forafvanding, slam, Mek/EL","PE",20,0]
["Forafvanding, slam, SRO","PE",10,0]
["Rådnetanke, slam, Konstruktioner","PE",60,0]
["Rådnetanke, slam, Mek/EL","PE",20,0]
["Rådnetanke, slam, SRO","PE",10,0]
["Gasdisponering, Konstruktioner","PE",60,0]
["Gasdisponering, Mek/EL","PE",20,0]
["Gasdisponering, SRO","PE",10,0]
["Gasdisponering - elproduktionsanlæg, Konstruktioner","PE",60,0]
["Gasdisponering - elproduktionsanlæg, Mek/EL","PE",20,0]
["Gasdisponering - elproduktionsanlæg, SRO","PE",10,0]
["Slutafvanding, slam - lavteknologisk (slambede), Konstruktioner","PE",60,0]
["Slutafvanding, slam - lavteknologisk (slambede), Mek/EL","PE",20,0]
["Slutafvanding, slam - lavteknologisk (slambede), SRO","PE",10,0]
["Slutafvanding, slam - højteknologisk (centrifuger), Konstruktioner","PE",60,0]
["Slutafvanding, slam - højteknologisk (centrifuger), Mek/El","PE",20,0]
["Slutafvanding, slam - højteknologisk (centrifuger), SRO","PE",10,0]
["Renseanlæg >= 5.000 PE, Slamdisponering"]
["Slutdisponering, slam - lavteknologisk (slammineralisering), Konstruktioner","PE",60,0]
["Slutdisponering, slam - lavteknologisk (slammineralisering), Mek/EL","PE",20,0]
["Slutdisponering, slam - lavteknologisk (slammineralisering), SRO","PE",10,0]
["Slutdisponering, slam - højteknologisk (slamtørring), Konstruktioner","PE",60,0]
["Slutdisponering, slam - højteknologisk (slamtørring), Mek/EL","PE",20,0]
["Slutdisponering, slam - højteknologisk (slamtørring), SRO","PE",10,0]
["Slutdisponering, slam - højteknologisk (slamtørring og -forbrænding), Konstruktioner","PE",60,0]
["Slutdisponering, slam - højteknologisk (slamtørring og -forbrænding), Mek/EL","PE",20,0]
["Slutdisponering, slam - højteknologisk (slamtørring og -forbrænding), SRO","PE",10,0]
["Mindre renseanlæg"]
["Mindre renseanlæg < 5.000 PE uden mulighed for opdeling","PE",40,0]
["Renseanlæg >= 5.000 PE, Vandbehandling"]
["Indløb med riste, Konstruktioner","PE",60,0]
["Indløb med riste, Mek/EL","PE",20,0]
["Indløb med riste, SRO","PE",10,0]
["Sand- og fedtfang, Kontruktioner","PE",60,0]
["Sand- og fedtfang, Mek/EL","PE",20,0]
["Sand- og fedtfang, SRO","PE",10,0]
["Forklaring, Konstruktioner","PE",60,0]
["Forklaring, Mek/EL","PE",20,0]
["Forklaring, SRO","PE",10,0]
["Beluftningstanke, Konstruktioner","PE",60,0]
["Beluftningstanke, Mek/EL","PE",20,0]
["Beluftningstanke, SRO","PE",10,0]
["Efterklaringstanke, Konstruktioner","PE",60,0]
["Efterklaringstanke, Mek/El","PE",20,0]
["Efterklaringstanke, SRO","PE",10,0]
["Efterbehandlingsanlæg (sandfilter), Konstruktioner","PE",60,0]
["Efterbehandlingsanlæg (sandfilter), Mek/EL","PE",20,0]
["Efterbehandlingsanlæg (sandfilter), SRO","PE",10,0]
["Renseanlæg >= 5.000 PE, Slambehandling"]
["Forafvanding, slam, Konstruktion","PE",60,0]
["Forafvanding, slam, Mek/EL","PE",20,0]
["Forafvanding, slam, SRO","PE",10,0]
["Rådnetanke, slam, Konstruktioner","PE",60,0]
["Rådnetanke, slam, Mek/EL","PE",20,0]
["Rådnetanke, slam, SRO","PE",10,0]
["Gasdisponering, Konstruktioner","PE",60,0]
["Gasdisponering, Mek/EL","PE",20,0]
["Gasdisponering, SRO","PE",10,0]
["Gasdisponering - elproduktionsanlæg, Konstruktioner","PE",60,0]
["Gasdisponering - elproduktionsanlæg, Mek/EL","PE",20,0]
["Gasdisponering - elproduktionsanlæg, SRO","PE",10,0]
["Slutafvanding, slam - lavteknologisk (slambede), Konstruktioner","PE",60,0]
["Slutafvanding, slam - lavteknologisk (slambede), Mek/EL","PE",20,0]
["Slutafvanding, slam - lavteknologisk (slambede), SRO","PE",10,0]
["Slutafvanding, slam - højteknologisk (centrifuger), Konstruktioner","PE",60,0]
["Slutafvanding, slam - højteknologisk (centrifuger), Mek/El","PE",20,0]
["Slutafvanding, slam - højteknologisk (centrifuger), SRO","PE",10,0]
["Renseanlæg >= 5.000 PE, Slamdisponering"]
["Slutdisponering, slam - lavteknologisk (slammineralisering), Konstruktioner","PE",60,0]
["Slutdisponering, slam - lavteknologisk (slammineralisering), Mek/EL","PE",20,0]
["Slutdisponering, slam - lavteknologisk (slammineralisering), SRO","PE",10,0]
["Slutdisponering, slam - højteknologisk (slamtørring), Konstruktioner","PE",60,0]
["Slutdisponering, slam - højteknologisk (slamtørring), Mek/EL","PE",20,0]
["Slutdisponering, slam - højteknologisk (slamtørring), SRO","PE",10,0]
["Slutdisponering, slam - højteknologisk (slamtørring og -forbrænding), Konstruktioner","PE",60,0]
["Slutdisponering, slam - højteknologisk (slamtørring og -forbrænding), Mek/EL","PE",20,0]
["Slutdisponering, slam - højteknologisk (slamtørring og -forbrænding), SRO","PE",10,0]

{"sheet":"Distributionsanlæg","index":1,"n_rows":322,"n_cols":6,"rows_kept":322,"cut":false,"hidden":false,"merged":[[0,5,1,5],[0,0,1,0],[0,1,1,1],[0,2,1,2],[0,3,1,3],[0,4,1,4]]}
["Distributionsanlæg","Enhed","Standard-levetid","Samlet mængde per 31/12-2014","Samlet mængde per 31/12-2015","Bemærk-ninger"]
[]
["Ledningsnet - Land"]
["Ledningsnet ≤ Ø 200 mm ","meter",75,{"$f":"112760+50600","v":163360},{"$f":"112760+50600","v":163360}]
["Ø 200 mm < Ledningsnet ≤ Ø 500 mm ","meter",75,{"$f":"32011+126-814","v":31323},{"$f":"32011+126-814","v":31323}]
["Ø 500 mm < Ledningsnet ≤ Ø 800 mm","meter",75,{"$f":"12434+222","v":12656},{"$f":"12434+222","v":12656}]
["Ø 800 mm < Ledningsnet ≤ Ø 1000 mm","meter",75,3791,3791]
["Ø 1000 mm < Ledningsnet ≤ Ø 1200 mm","meter",75,{"$f":"759+163","v":922},{"$f":"759+163","v":922}]
["Ø 1200 mm < Ledningsnet ≤ Ø 1600 mm","meter",75,{"$f":"1127+64","v":1191},{"$f":"1127+64","v":1191}]
["Ledningsnet > Ø 1600 mm (rørbassiner og transportledninger)","meter",75,155,155]
["Strømpeforing ≤ Ø 200 mm","meter",50,{"$f":"39+1562","v":1601},{"$f":"39+1562+182","v":1783}]
["Strømpeforing Ø 200 mm < Ledningsnet ≤ Ø 500 mm","meter",50,0,0]
["Strømpeforing Ø 500 mm < Ledningsnet ≤ Ø 800 mm","meter",50,0,0]
["Strømpeforing Ø 800 mm < Ledningsnet ≤ Ø 1000 mm","meter",50,0,0]
["Strømpeforing Ø 1000 mm < Ledningsnet ≤ Ø 1200 mm","meter",50,0,0]
["Strømpeforing Ø 1200 mm < Ledningsnet ≤ Ø 1600 mm","meter",50,0,0]
["Ledningsnet - By"]
["Ledningsnet ≤ Ø 200 mm ","meter",75,{"$f":"284069+164541","v":448610},451130]
["Ø 200 mm < Ledningsnet ≤ Ø 500 mm ","meter",75,{"$f":"175854+11780-2698","v":184936},{"$f":"175854+11780-2698+2987-279-40","v":187604}]
["Ø 500 mm < Ledningsnet ≤ Ø 800 mm","meter",75,{"$f":"53910+5461-349","v":59022},{"$f":"53910+5461-349+144","v":59166}]
["Ø 800 mm < Ledningsnet ≤ Ø 1000 mm","meter",75,{"$f":"15747+284","v":16031},{"$f":"15747+284","v":16031}]
["Ø 1000 mm < Ledningsnet ≤ Ø 1200 mm","meter",75,{"$f":"10189+1280-66","v":11403},{"$f":"10189+1280-66","v":11403}]
["Ø 1200 mm < Ledningsnet ≤ Ø 1600 mm","meter",75,{"$f":"5545+122-140","v":5527},{"$f":"5545+122-140","v":5527}]
["Ledningsnet > Ø 1600 mm (rørbassiner og transportledninger)","meter",75,489,489]
["Strømpeforing ≤ Ø 200 mm","meter",50,{"$f":"176+1827","v":2003},{"$f":"176+1827","v":2003}]
["Strømpeforing Ø 200 mm < Ledningsnet ≤ Ø 500 mm","meter",50,{"$f":"596+3066","v":3662},{"$f":"596+3066+352","v":4014}]
["Strømpeforing Ø 500 mm < Ledningsnet ≤ Ø 800 mm","meter",50,{"$f":"12+1330","v":1342},{"$f":"12+1330+115","v":1457}]
["Strømpeforing Ø 800 mm < Ledningsnet ≤ Ø 1000 mm","meter",50,115,115]
["Strømpeforing Ø 1000 mm < Ledningsnet ≤ Ø 1200 mm","meter",50,0,612]
["Strømpeforing Ø 1200 mm < Ledningsnet ≤ Ø 1600 mm","meter",50,218,218]
["Ledningsnet - City"]
["Ledningsnet ≤ Ø 200 mm ","meter",75,{"$f":"16817+22173","v":38990},40720]
["Ø 200 mm < Ledningsnet ≤ Ø 500 mm ","meter",75,{"$f":"21611+3091-741","v":23961},{"$f":"21611+3091-741+1317","v":25278}]
["Ø 500 mm < Ledningsnet ≤ Ø 800 mm","meter",75,{"$f":"4858+1011-12","v":5857},{"$f":"4858+1011-12+161","v":6018}]
["Ø 800 mm < Ledningsnet ≤ Ø 1000 mm","meter",75,{"$f":"1668+8","v":1676},{"$f":"1668+8","v":1676}]
["Ø 1000 mm < Ledningsnet ≤ Ø 1200 mm","meter",75,1507,1507]
["Ø 1200 mm < Ledningsnet ≤ Ø 1600 mm","meter",75,{"$f":"683+143","v":826},{"$f":"683+143","v":826}]
["Ledningsnet > Ø 1600 mm (rørbassiner og transportledninger)","meter",75,301,301]
["Strømpeforing ≤ Ø 200 mm","meter",50,{"$f":"0+288","v":288},{"$f":"0+288","v":288}]
["Strømpeforing Ø 200 mm < Ledningsnet ≤ Ø 500 mm","meter",50,{"$f":"75+568","v":643},{"$f":"75+568+611","v":1254}]
["Strømpeforing Ø 500 mm < Ledningsnet ≤ Ø 800 mm","meter",50,{"$f":"93+296","v":389},{"$f":"93+296+287","v":676}]
["Strømpeforing Ø 800 mm < Ledningsnet ≤ Ø 1000 mm","meter",50,0,0]
["Strømpeforing Ø 1000 mm < Ledningsnet ≤ Ø 1200 mm","meter",50,0,0]
["Strømpeforing Ø 1200 mm < Ledningsnet ≤ Ø 1600 mm","meter",50,0,0]
["Ledningsnet - Indre city"]
["Ledningsnet ≤ Ø 200 mm ","meter",75,0,0]
["Ø 200 mm < Ledningsnet ≤ Ø 500 mm ","meter",75,0,0]
["Ø 500 mm < Ledningsnet ≤ Ø 800 mm","meter",75,0,0]
["Ø 800 mm < Ledningsnet ≤ Ø 1000 mm","meter",75,0,0]
["Ø 1000 mm < Ledningsnet ≤ Ø 1200 mm","meter",75,0,0]
["Ø 1200 mm < Ledningsnet ≤ Ø 1600 mm","meter",75,0,0]
["Ledningsnet > Ø 1600 mm (rørbassiner og transportledninger)","meter",75,0,0]
["Strømpeforing ≤ Ø 200 mm","meter",50,0,0]
["Strømpeforing Ø 200 mm < Ledningsnet ≤ Ø 500 mm","meter",50,0,0]
["Strømpeforing Ø 500 mm < Ledningsnet ≤ Ø 800 mm","meter",50,0,0]
["Strømpeforing Ø 800 mm < Ledningsnet ≤ Ø 1000 mm","meter",50,0,0]
["Strømpeforing Ø 1000 mm < Ledningsnet ≤ Ø 1200 mm","meter",50,0,0]
["Strømpeforing Ø 1200 mm < Ledningsnet ≤ Ø 1600 mm","meter",50,0,0]
["Brønde og stik, ledningsnet - Land"]
["Brønde","stk.",75,{"$f":"1624+19-6","v":1637},{"$f":"1624+19-6","v":1637}]
["Stik","stk.",75,3107,3107,"POLKA-værdi"]
["Brønde og stik, ledningsnet - By"]
["Brønde","stk.",75,{"$f":"11984+1070-160","v":12894},{"$f":"11984+1070-160+27","v":12921}]
["Stik","stk.",75,19771,19771,"POLKA-værdi"]
["Brønde og stik, ledningsnet - City"]
["Brønde","stk.",75,{"$f":"1183+269-244","v":1208},{"$f":"1183+269-244+12","v":1220}]
["Stik","stk.",75,2706,2706,"POLKA-værdi"]
["Brønde og stik, ledningsnet - Indre city"]
["Brønde","stk.",75,0,0]
["Stik","stk.",75,0,0]
["Små pumpestationer inkl. SRO-anlæg - Land"]
["Tryksatte minipumpestationer (husstandssystemer)","stk.",30,{"$f":"42+121","v":163},165]
["Pumpestationer i brønde (< 6,25 m2), Konstruktioner","stk.",50,{"$f":"150+7","v":157},149]
["Pumpestationer i brønde (< 6,25 m2), Mek/EL","stk.",20,{"$f":"150+7","v":157},149]
["Pumpestationer i brønde (< 6,25 m2), SRO","stk.",10,{"$f":"23+2","v":25},{"$f":"23+2","v":25}]
["Pumpestationer m. overbygning (< 20 m2), Konstruktioner","stk.",50,{"$f":"10+2","v":12},{"$f":"10+2","v":12}]
["Pumpestationer m. overbygning (< 20 m2), Mek/EL","stk.",20,{"$f":"10+2","v":12},{"$f":"10+2","v":12}]
["Pumpestationer m. overbygning (< 20 m2), SRO","stk.",10,{"$f":"8+2+2","v":12},{"$f":"8+2+2","v":12}]
["Pumpestationer i underjordiske bygværker (<50 m2), Konstruktioner","stk.",50,7,7]
["Pumpestationer i underjordiske bygværker (<50 m2), Mek/El","stk.",20,7,7]
["Pumpestationer i underjordiske bygværker (<50 m2), SRO","stk.",10,{"$f":"6+1","v":7},{"$f":"6+1","v":7}]
["Små pumpestationer inkl. SRO-anlæg - By"]
["Tryksatte minipumpestationer (husstandssystemer)","stk.",30,{"$f":"6+4","v":10},{"$f":"6+4","v":10}]
["Pumpestationer i brønde (< 6,25 m2), Konstruktioner","stk.",50,{"$f":"38+3","v":41},{"$f":"38+3","v":41}]
["Pumpestationer i brønde (< 6,25 m2), Mek/EL","stk.",20,{"$f":"38+3","v":41},{"$f":"38+3","v":41}]
["Pumpestationer i brønde (< 6,25 m2), SRO","stk.",10,{"$f":"22+3+16","v":41},{"$f":"22+3+16","v":41}]
["Pumpestationer m. overbygning (< 20 m2), Konstruktioner","stk.",50,{"$f":"8+1","v":9},8]
["Pumpestationer m. overbygning (< 20 m2), Mek/EL","stk.",20,{"$f":"8+1","v":9},8]
["Pumpestationer m. overbygning (< 20 m2), SRO","stk.",10,{"$f":"7+2","v":9},8]
["Pumpestationer i underjordiske bygværker (<50 m2), Konstruktioner","stk.",50,{"$f":"8+1","v":9},{"$f":"8+1","v":9}]
["Pumpestationer i underjordiske bygværker (<50 m2), Mek/El","stk.",20,{"$f":"8+1","v":9},{"$f":"8+1","v":9}]
["Pumpestationer i underjordiske bygværker (<50 m2), SRO","stk.",10,{"$f":"7+1+1","v":9},{"$f":"7+1+1","v":9}]
["Små pumpestationer inkl. SRO-anlæg - City"]
["Tryksatte minipumpestationer (husstandssystemer)","stk.",30,0,0]
["Pumpestationer i brønde (< 6,25 m2), Konstruktioner","stk.",50,2,1]
["Pumpestationer i brønde (< 6,25 m2), Mek/EL","stk.",20,2,1]
["Pumpestationer i brønde (< 6,25 m2), SRO","stk.",10,{"$f":"1+1","v":2},1]
["Pumpestationer m. overbygning (< 20 m2), Konstruktioner","stk.",50,0,0]
["Pumpestationer m. overbygning (< 20 m2), Mek/EL","stk.",20,0,0]
["Pumpestationer m. overbygning (< 20 m2), SRO","stk.",10,0,0]
["Pumpestationer i underjordiske bygværker (<50 m2), Konstruktioner","stk.",50,0,0]
["Pumpestationer i underjordiske bygværker (<50 m2), Mek/El","stk.",20,0,0]
["Pumpestationer i underjordiske bygværker (<50 m2), SRO","stk.",10,0,0]
["Små pumpestationer inkl. SRO-anlæg - Indre city"]
["Tryksatte minipumpestationer (husstandssystemer)","stk.",30,0,0]
["Pumpestationer i brønde (< 6,25 m2), Konstruktioner","stk.",50,0,0]
["Pumpestationer i brønde (< 6,25 m2), Mek/EL","stk.",20,0,0]
["Pumpestationer i brønde (< 6,25 m2), SRO","stk.",10,0,0]
["Pumpestationer m. overbygning (< 20 m2), Konstruktioner","stk.",50,0,0]
["Pumpestationer m. overbygning (< 20 m2), Mek/EL","stk.",20,0,0]
["Pumpestationer m. overbygning (< 20 m2), SRO","stk.",10,0,0]
["Pumpestationer i underjordiske bygværker (<50 m2), Konstruktioner","stk.",50,0,0]
["Pumpestationer i underjordiske bygværker (<50 m2), Mek/El","stk.",20,0,0]
["Pumpestationer i underjordiske bygværker (<50 m2), SRO","stk.",10,0,0]
["Store pumpestationer: inkl. SRO-anlæg - Land"]
["Kælder","m2",75,0,0]
["Pumpeinstallation Miljøklasse A (100-300 l/s) - Mek/EL","stk.",20,0,0]
["Pumpeinstallation Miljøklasse A (100-300 l/s) - SRO","stk.",10,0,0]
["Pumpeinstallation Miljøklasse A (300-600 l/s) - Mek/EL","stk.",20,0,0]
["Pumpeinstallation Miljøklasse A (300-600 l/s) - SRO","stk.",10,0,0]
["Pumpeinstallation Miljøklasse A (600-1.000 l/s) - Mek/EL","stk.",20,0,0]
["Pumpeinstallation Miljøklasse A (600-1.000 l/s) - SRO","stk.",10,0,0]
["Pumpeinstallation Miljøklasse A (1.000-1.500 l/s) - Mek/EL","stk.",20,0,0]
["Pumpeinstallation Miljøklasse A (1.000-1.500 l/s) - SRO","stk.",10,0,0]
["Pumpeinstallation Miljøklasse B (100-300 l/s) - Mek/EL","stk.",20,0,0]
["Pumpeinstallation Miljøklasse B (100-300 l/s) - SRO","stk.",10,0,0]
["Pumpeinstallation Miljøklasse B (300-600 l/s) - Mek/EL","stk.",20,0,0]
["Pumpeinstallation Miljøklasse B (300-600 l/s) - SRO","stk.",10,0,0]
["Pumpeinstallation Miljøklasse B (600-1.000 l/s) - Mek/EL","stk.",20,0,0]
["Pumpeinstallation Miljøklasse B (600-1.000 l/s) - SRO","stk.",10,0,0]
["Pumpeinstallation Miljøklasse B (1.000-1.500 l/s) - Mek/EL","stk.",20,0,0]
["Pumpeinstallation Miljøklasse B (1.000-1.500 l/s) - SRO","stk.",10,0,0]
["Overbygning","m2",75,0,0]
["Store pumpestationer: inkl. SRO-anlæg - By"]
["Kælder","m2",75,0,0]
["Pumpeinstallation Miljøklasse A (100-300 l/s) - Mek/EL","stk.",20,0,0]
["Pumpeinstallation Miljøklasse A (100-300 l/s) - SRO","stk.",10,0,0]
["Pumpeinstallation Miljøklasse A (300-600 l/s) - Mek/EL","stk.",20,0,0]
["Pumpeinstallation Miljøklasse A (300-600 l/s) - SRO","stk.",10,0,0]
["Pumpeinstallation Miljøklasse A (600-1.000 l/s) - Mek/EL","stk.",20,0,0]
["Pumpeinstallation Miljøklasse A (600-1.000 l/s) - SRO","stk.",10,0,0]
["Pumpeinstallation Miljøklasse A (1.000-1.500 l/s) - Mek/EL","stk.",20,0,0]
["Pumpeinstallation Miljøklasse A (1.000-1.500 l/s) - SRO","stk.",10,0,0]
["Pumpeinstallation Miljøklasse B (100-300 l/s) - Mek/EL","stk.",20,0,0]
["Pumpeinstallation Miljøklasse B (100-300 l/s) - SRO","stk.",10,0,0]
["Pumpeinstallation Miljøklasse B (300-600 l/s) - Mek/EL","stk.",20,0,0]
["Pumpeinstallation Miljøklasse B (300-600 l/s) - SRO","stk.",10,0,0]
["Pumpeinstallation Miljøklasse B (600-1.000 l/s) - Mek/EL","stk.",20,0,0]
["Pumpeinstallation Miljøklasse B (600-1.000 l/s) - SRO","stk.",10,0,0]
["Pumpeinstallation Miljøklasse B (1.000-1.500 l/s) - Mek/EL","stk.",20,1,1,"PSA"]
["Pumpeinstallation Miljøklasse B (1.000-1.500 l/s) - SRO","stk.",10,1,1,"PSA"]
["Overbygning ","m2",75,235,235]
["Store pumpestationer: inkl. SRO-anlæg - City"]
["Kælder","m2",75,0,0]
["Pumpeinstallation Miljøklasse A (100-300 l/s) - Mek/EL","stk.",20,0,0]
["Pumpeinstallation Miljøklasse A (100-300 l/s) - SRO","stk.",10,0,0]
["Pumpeinstallation Miljøklasse A (300-600 l/s) - Mek/EL","stk.",20,0,0]
["Pumpeinstallation Miljøklasse A (300-600 l/s) - SRO","stk.",10,0,0]
["Pumpeinstallation Miljøklasse A (600-1.000 l/s) - Mek/EL","stk.",20,0,0]
["Pumpeinstallation Miljøklasse A (600-1.000 l/s) - SRO","stk.",10,0,0]
["Pumpeinstallation Miljøklasse A (1.000-1.500 l/s) - Mek/EL","stk.",20,0,0]
["Pumpeinstallation Miljøklasse A (1.000-1.500 l/s) - SRO","stk.",10,0,0]
["Pumpeinstallation Miljøklasse B (100-300 l/s) - Mek/EL","stk.",20,0,0]
["Pumpeinstallation Miljøklasse B (100-300 l/s) - SRO","stk.",10,0,0]
["Pumpeinstallation Miljøklasse B (300-600 l/s) - Mek/EL","stk.",20,0,0]
["Pumpeinstallation Miljøklasse B (300-600 l/s) - SRO","stk.",10,0,0]
["Pumpeinstallation Miljøklasse B (600-1.000 l/s) - Mek/EL","stk.",20,0,0]
["Pumpeinstallation Miljøklasse B (600-1.000 l/s) - SRO","stk.",10,0,0]
["Pumpeinstallation Miljøklasse B (1.000-1.500 l/s) - Mek/EL","stk.",20,2,2,"Oldenb.gade"]
["Pumpeinstallation Miljøklasse B (1.000-1.500 l/s) - SRO","stk.",10,2,2,"Norgesgade"]
["Overbygning ","m2",75,{"$f":"65+220","v":285},{"$f":"65+220","v":285}]
["Store pumpestationer: inkl. SRO-anlæg - Indre city"]
["Kælder","m2",75,0]
["Pumpeinstallation Miljøklasse A (100-300 l/s) - Mek/EL","stk.",20,0]
["Pumpeinstallation Miljøklasse A (100-300 l/s) - SRO","stk.",10,0]
["Pumpeinstallation Miljøklasse A (300-600 l/s) - Mek/EL","stk.",20,0]
["Pumpeinstallation Miljøklasse A (300-600 l/s) - SRO","stk.",10,0]
["Pumpeinstallation Miljøklasse A (600-1.000 l/s) - Mek/EL","stk.",20,0]
["Pumpeinstallation Miljøklasse A (600-1.000 l/s) - SRO","stk.",10,0]
["Pumpeinstallation Miljøklasse A (1.000-1.500 l/s) - Mek/EL","stk.",20,0]
["Pumpeinstallation Miljøklasse A (1.000-1.500 l/s) - SRO","stk.",10,0]
["Pumpeinstallation Miljøklasse B (100-300 l/s) - Mek/EL","stk.",20,0]
["Pumpeinstallation Miljøklasse B (100-300 l/s) - SRO","stk.",10,0]
["Pumpeinstallation Miljøklasse B (300-600 l/s) - Mek/EL","stk.",20,0]
["Pumpeinstallation Miljøklasse B (300-600 l/s) - SRO","stk.",10,0]
["Pumpeinstallation Miljøklasse B (600-1.000 l/s) - Mek/EL","stk.",20,0]
["Pumpeinstallation Miljøklasse B (600-1.000 l/s) - SRO","stk.",10,0]
["Pumpeinstallation Miljøklasse B (1.000-1.500 l/s) - Mek/EL","stk.",20,0]
["Pumpeinstallation Miljøklasse B (1.000-1.500 l/s) - SRO","stk.",10,0]
["Overbygning","m2",75,0]
["Overløbsbygværker - Land"]
["Kælder (< 7 m2) ","stk.",75,13,13]
["Kælder (7 - 20 m2) ","m2",75,150,150]
["Kælder (20 - 30 m2)","m2",75,0,0]
["Installationer \"ingen eller faste riste\" (mindre end 7 m2)","stk.",20,33,33]
["Installationer \"mekaniske riste og SRO\" Miljøklasse A. (7-20 m2) - Mek/EL","stk.",20,0,0]
["Installationer \"mekaniske riste og SRO\" Miljøklasse A. (7-20 m2) - SRO","stk.",10,0,0]
["Installationer \"mekaniske riste og SRO\" Miljøklasse A. (20-30 m2) - Mek/EL","stk.",20,0,0]
["Installationer \"mekaniske riste og SRO\" Miljøklasse A. (20-30 m2) - SRO","stk.",10,0,0]
["Installationer \"mekaniske riste og SRO\" Miljøklasse B. (7-20 m2) - Mek/EL","stk.",20,0,0]
["Installationer \"mekaniske riste og SRO\" Miljøklasse B. (7-20 m2) - SRO","stk.",10,0,0]
["Installationer \"mekaniske riste og SRO\" Miljøklasse B. (20-30 m2) - Mek/EL","stk.",20,0,0]
["Installationer \"mekaniske riste og SRO\" Miljøklasse B. (20-30 m2) - SRO","stk.",10,0,0]
["Overbygning","stk.",75,0,0]
["Overløbsbygværker - By"]
["Kælder (< 7 m2) ","stk.",75,49,49]
["Kælder (7 - 20 m2) ","m2",75,113,113]
["Kælder (20 - 30 m2)","m2",75,417,417]
["Installationer \"ingen eller faste riste\" (mindre end 7 m2)","stk.",20,122,122]
["Installationer \"mekaniske riste og SRO\" Miljøklasse A. (7-20 m2) - Mek/EL","stk.",20,0,0]
["Installationer \"mekaniske riste og SRO\" Miljøklasse A. (7-20 m2) - SRO","stk.",10,0,0]
["Installationer \"mekaniske riste og SRO\" Miljøklasse A. (20-30 m2) - Mek/EL","stk.",20,0,0]
["Installationer \"mekaniske riste og SRO\" Miljøklasse A. (20-30 m2) - SRO","stk.",10,0,0]
["Installationer \"mekaniske riste og SRO\" Miljøklasse B. (7-20 m2) - Mek/EL","stk.",20,0,0]
["Installationer \"mekaniske riste og SRO\" Miljøklasse B. (7-20 m2) - SRO","stk.",10,0,0]
["Installationer \"mekaniske riste og SRO\" Miljøklasse B. (20-30 m2) - Mek/EL","stk.",20,0,0]
["Installationer \"mekaniske riste og SRO\" Miljøklasse B. (20-30 m2) - SRO","stk.",10,0,0]
["Overbygning","stk.",75,0,0]
["Overløbsbygværker - City"]
["Kælder (< 7 m2) ","stk.",75,3,3]
["Kælder (7 - 20 m2) ","m2",75,0,0]
["Kælder (20 - 30 m2)","m2",75,25,25]
["Installationer \"ingen eller faste riste\" (mindre end 7 m2)","stk.",20,7,7]
["Installationer \"mekaniske riste og SRO\" Miljøklasse A. (7-20 m2) - Mek/EL","stk.",20,0,0]
["Installationer \"mekaniske riste og SRO\" Miljøklasse A. (7-20 m2) - SRO","stk.",10,0,0]
["Installationer \"mekaniske riste og SRO\" Miljøklasse A. (20-30 m2) - Mek/EL","stk.",20,0,0]
["Installationer \"mekaniske riste og SRO\" Miljøklasse A. (20-30 m2) - SRO","stk.",10,0,0]
["Installationer \"mekaniske riste og SRO\" Miljøklasse B. (7-20 m2) - Mek/EL","stk.",20,0,0]
["Installationer \"mekaniske riste og SRO\" Miljøklasse B. (7-20 m2) - SRO","stk.",10,0,0]
["Installationer \"mekaniske riste og SRO\" Miljøklasse B. (20-30 m2) - Mek/EL","stk.",20,0,0]
["Installationer \"mekaniske riste og SRO\" Miljøklasse B. (20-30 m2) - SRO","stk.",10,0,0]
["Overbygning (efter beliggenhed) ","stk.",75,0,0]
["Overløbsbygværker - Indre city"]
["Kælder (< 7 m2) ","stk.",75,0]
["Kælder (7 - 20 m2) ","m2",75,0]
["Kælder (20 - 30 m2)","m2",75,0]
["Installationer \"ingen eller faste riste\" (mindre end 7 m2)","stk.",20,0]
["Installationer \"mekaniske riste og SRO\" Miljøklasse A. (7-20 m2) - Mek/EL","stk.",20,0]
["Installationer \"mekaniske riste og SRO\" Miljøklasse A. (7-20 m2) - SRO","stk.",10,0]
["Installationer \"mekaniske riste og SRO\" Miljøklasse A. (20-30 m2) - Mek/EL","stk.",20,0]
["Installationer \"mekaniske riste og SRO\" Miljøklasse A. (20-30 m2) - SRO","stk.",10,0]
["Installationer \"mekaniske riste og SRO\" Miljøklasse B. (7-20 m2) - Mek/EL","stk.",20,0]
["Installationer \"mekaniske riste og SRO\" Miljøklasse B. (7-20 m2) - SRO","stk.",10,0]
["Installationer \"mekaniske riste og SRO\" Miljøklasse B. (20-30 m2) - Mek/EL","stk.",20,0]
["Installationer \"mekaniske riste og SRO\" Miljøklasse B. (20-30 m2) - SRO","stk.",10,0]
["Overbygning","stk.",75,0]
["Forsinkelsesbassiner - Land"]
["Forsinkelsesbassiner, lukkede uden automatisk rensning og SRO Miljøklasse B (mindre end 1.000 m3)","m³",50,7265,7265]
["Forsinkelsesbassiner, lukkede med automatisk rensning og SRO Miljøklasse A (500-1.000 m3) - Konstruktioner","m³",75,0,0]
["Forsinkelsesbassiner, lukkede med automatisk rensning og SRO Miljøklasse A (500-1.000 m3) - Mek/EL","m³",20,0,0]
["Forsinkelsesbassiner, lukkede med automatisk rensning og SRO Miljøklasse A (500-1.000 m3) - SRO ","m³",10,0,0]
["Forsinkelsesbassiner, lukkede med automatisk rensning og SRO Miljøklasse A (1.000-3.000 m3) - Konstruktioner","m³",75,0,0]
["Forsinkelsesbassiner, lukkede med automatisk rensning og SRO Miljøklasse A (1.000-3.000 m3) - Mek/EL","m³",20,0,0]
["Forsinkelsesbassiner, lukkede med automatisk rensning og SRO Miljøklasse A (1.000-3.000 m3) - SRO","m³",10,0,0]
["Forsinkelsesbassiner, lukkede med automatisk rensning og SRO Miljøklasse A (5.000-10.000 m3) - Konstruktionre","m³",75,0,0]
["Forsinkelsesbassiner, lukkede med automatisk rensning og SRO Miljøklasse A (5.000-10.000 m3) - Mek/EL","m³",20,0,0]
["Forsinkelsesbassiner, lukkede med automatisk rensning og SRO Miljøklasse A (5.000-10.000 m3) - SRO","m³",10,0,0]
["Forsinkelsesbassiner, lukkede med automatisk rensning og SRO Miljøklasse A (større end 10.000 m3) - Konstruktioner","m³",75,0,0]
["Forsinkelsesbassiner, lukkede med automatisk rensning og SRO Miljøklasse A (større end 10.000 m3) - Mek/EL","m³",20,0,0]
["Forsinkelsesbassiner, lukkede med automatisk rensning og SRO Miljøklasse A (større end 10.000 m3) - SRO","m³",10,0,0]
["Forsinkelsesbassiner - By"]
["Forsinkelsesbassiner, lukkede uden automatisk rensning og SRO Miljøklasse B (mindre end 1.000 m3)","m³",50,{"$f":"6706+1200","v":7906},{"$f":"6706+1200","v":7906}]
["Forsinkelsesbassiner, lukkede med automatisk rensning og SRO Miljøklasse A (500-1.000 m3) - Konstruktioner","m³",75,0,0]
["Forsinkelsesbassiner, lukkede med automatisk rensning og SRO Miljøklasse A (500-1.000 m3) - Mek/EL","m³",20,0,0]
["Forsinkelsesbassiner, lukkede med automatisk rensning og SRO Miljøklasse A (500-1.000 m3) - SRO ","m³",10,0,0]
["Forsinkelsesbassiner, lukkede med automatisk rensning og SRO Miljøklasse A (1.000-3.000 m3) - Konstruktioner","m³",75,0,0]
["Forsinkelsesbassiner, lukkede med automatisk rensning og SRO Miljøklasse A (1.000-3.000 m3) - Mek/EL","m³",20,0,0]
["Forsinkelsesbassiner, lukkede med automatisk rensning og SRO Miljøklasse A (1.000-3.000 m3) - SRO","m³",10,0,0]
["Forsinkelsesbassiner, lukkede med automatisk rensning og SRO Miljøklasse A (5.000-10.000 m3) - Konstruktionre","m³",75,0,0]
["Forsinkelsesbassiner, lukkede med automatisk rensning og SRO Miljøklasse A (5.000-10.000 m3) - Mek/EL","m³",20,0,0]
["Forsinkelsesbassiner, lukkede med automatisk rensning og SRO Miljøklasse A (5.000-10.000 m3) - SRO","m³",10,0,0]
["Forsinkelsesbassiner, lukkede med automatisk rensning og SRO Miljøklasse A (større end 10.000 m3) - Konstruktioner","m³",75,0,0]
["Forsinkelsesbassiner, lukkede med automatisk rensning og SRO Miljøklasse A (større end 10.000 m3) - Mek/EL","m³",20,0,0]
["Forsinkelsesbassiner, lukkede med automatisk rensning og SRO Miljøklasse A (større end 10.000 m3) - SRO","m³",10,0,0]
["Forsinkelsesbassiner - City"]
["Forsinkelsesbassiner, lukkede uden automatisk rensning og SRO Miljøklasse B (mindre end 1.000 m3)","m³",50,1132,1132]
["Forsinkelsesbassiner, lukkede med automatisk rensning og SRO Miljøklasse A (500-1.000 m3) - Konstruktioner","m³",75,0,0]
["Forsinkelsesbassiner, lukkede med automatisk rensning og SRO Miljøklasse A (500-1.000 m3) - Mek/EL","m³",20,0,0]
["Forsinkelsesbassiner, lukkede med automatisk rensning og SRO Miljøklasse A (500-1.000 m3) - SRO ","m³",10,0,0]
["Forsinkelsesbassiner, lukkede med automatisk rensning og SRO Miljøklasse A (1.000-3.000 m3) - Konstruktioner","m³",75,0,0]
["Forsinkelsesbassiner, lukkede med automatisk rensning og SRO Miljøklasse A (1.000-3.000 m3) - Mek/EL","m³",20,0,0]
["Forsinkelsesbassiner, lukkede med automatisk rensning og SRO Miljøklasse A (1.000-3.000 m3) - SRO","m³",10,0,0]
["Forsinkelsesbassiner, lukkede med automatisk rensning og SRO Miljøklasse A (5.000-10.000 m3) - Konstruktionre","m³",75,0,0]
["Forsinkelsesbassiner, lukkede med automatisk rensning og SRO Miljøklasse A (5.000-10.000 m3) - Mek/EL","m³",20,0,0]
["Forsinkelsesbassiner, lukkede med automatisk rensning og SRO Miljøklasse A (5.000-10.000 m3) - SRO","m³",10,0,0]
["Forsinkelsesbassiner, lukkede med automatisk rensning og SRO Miljøklasse A (større end 10.000 m3) - Konstruktioner","m³",75,0,0]
["Forsinkelsesbassiner, lukkede med automatisk rensning og SRO Miljøklasse A (større end 10.000 m3) - Mek/EL","m³",20,0,0]
["Forsinkelsesbassiner, lukkede med automatisk rensning og SRO Miljøklasse A (større end 10.000 m3) - SRO","m³",10,0,0]
["Forsinkelsesbassiner - Indre city"]
["Forsinkelsesbassiner, lukkede uden automatisk rensning og SRO Miljøklasse B (mindre end 1.000 m3)","m³",50,0]
["Forsinkelsesbassiner, lukkede med automatisk rensning og SRO Miljøklasse A (500-1.000 m3) - Konstruktioner","m³",75,0]
["Forsinkelsesbassiner, lukkede med automatisk rensning og SRO Miljøklasse A (500-1.000 m3) - Mek/EL","m³",20,0]
["Forsinkelsesbassiner, lukkede med automatisk rensning og SRO Miljøklasse A (500-1.000 m3) - SRO ","m³",10,0]
["Forsinkelsesbassiner, lukkede med automatisk rensning og SRO Miljøklasse A (1.000-3.000 m3) - Konstruktioner","m³",75,0]
["Forsinkelsesbassiner, lukkede med automatisk rensning og SRO Miljøklasse A (1.000-3.000 m3) - Mek/EL","m³",20,0]
["Forsinkelsesbassiner, lukkede med automatisk rensning og SRO Miljøklasse A (1.000-3.000 m3) - SRO","m³",10,0]
["Forsinkelsesbassiner, lukkede med automatisk rensning og SRO Miljøklasse A (5.000-10.000 m3) - Konstruktionre","m³",75,0]
["Forsinkelsesbassiner, lukkede med automatisk rensning og SRO Miljøklasse A (5.000-10.000 m3) - Mek/EL","m³",20,0]
["Forsinkelsesbassiner, lukkede med automatisk rensning og SRO Miljøklasse A (5.000-10.000 m3) - SRO","m³",10,0]
["Forsinkelsesbassiner, lukkede med automatisk rensning og SRO Miljøklasse A (større end 10.000 m3) - Konstruktioner","m³",75,0]
["Forsinkelsesbassiner, lukkede med automatisk rensning og SRO Miljøklasse A (større end 10.000 m3) - Mek/EL","m³",20,0]
["Forsinkelsesbassiner, lukkede med automatisk rensning og SRO Miljøklasse A (større end 10.000 m3) - SRO","m³",10,0]
["Sparebassin/laguner - Land"]
["Jordbassin Klasse B","m³",50,{"$f":"175733+3400","v":179133},{"$f":"175733+3400","v":179133}]
["Jordbassin Klasse A","m³",50,0,0]
["Indløb-/udløbsarrangement","stk.",75,0,0]
["Andre bygninger (tekniske installationer, målere mv.)","m2",75,61,61]
["Sparebassin/laguner - By"]
["Jordbassin Klasse B","m³",50,{"$f":"56523+19560","v":76083},{"$f":"56523+19560+2000","v":78083}]
["Jordbassin Klasse A","m³",50,0,0]
["Indløb-/udløbsarrangement","stk.",75,0,0]
["Andre bygninger (tekniske installationer, målere mv.)","m2",75,92,92]
["Sparebassin/laguner - City"]
["Jordbassin Klasse B","m³",50,0,0]
["Jordbassin Klasse A","m³",50,0,0]
["Indløb-/udløbsarrangement","stk.",75,0,0]
["Andre bygninger (tekniske installationer, målere mv.)","m2",75,6,6]
["Sparebassin/laguner  - Indre city"]
["Jordbassin Klasse B","m³",50,0]
["Jordbassin Klasse A","m³",50,0]
["Indløb-/udløbsarrangement","stk.",75,0]
["Andre bygninger (tekniske installationer, målere mv.)","m2",75,0]

{"sheet":"Fællesfunktionsanlæg","index":2,"n_rows":16,"n_cols":6,"rows_kept":16,"cut":false,"hidden":false,"merged":[[0,5,1,5],[0,0,1,0],[0,1,1,1],[0,2,1,2],[0,3,1,3],[0,4,1,4]]}
["Fællesfunktionsanlæg","Enhed","Standard-levetid","Samlet mængde per 31/12-2014","Samlet mængde per 31/12-2015","Bemærk-ninger"]
[]
[]
["Andre"]
["Administrationbygninger","m2",75,796,796]
["Arbejdsplads og kontor","stk.",5,0,0]
["Køretøjer, personbil","stk.",5,2,2]
["Køretøjer, små lastvogne (< 3.500 kg.)","stk.",5,9,9]
["Køretøjer, store lastvogne (> 3.500 kg.)","stk.",5,0,0]
["Køretøjer, entreprenørmaskiner","stk.",5,0,0]
["Slamsugere","stk.",5,1,1]
["Værksteder, garager","m2",75,642,642]
["Øvrige"]
["Solcelleanlæg","KWh",25,0]
["EDB, tablets og navigationsudstyr","stk.",5,0]
["Elektroniske kort","stk.",5,0]

{"sheet":"Drop downliste","index":3,"n_rows":13,"n_cols":11,"rows_kept":13,"cut":false,"hidden":true,"merged":[]}
[]
[null,"datakvalitet","Serviceselskab","Overheads","Infrastrukturomlægninger","Infrastruktur per år","år 1","år 2","år 3","år 4","år 5"]
[null,null,null,null,null,null,2010,2011,2012,2013,2014]
[null,1,"ja","Full-cost","ja",0.1]
[null,2,"nej","Direct-cost","nej",0.2]
[null,3,null,"Nøgletalsfordeling",null,0.3]
[null,null,null,"Activity based cost",null,0.4]
[null,null,null,"Andet",null,0.5]
[null,null,null,null,null,0.6]
[null,null,null,null,null,0.7]
[null,null,null,null,null,0.8]
[null,null,null,null,null,0.9]
[null,null,null,null,null,1]